[Event "Dalheimers Hus Rapid Open"]
[Site "Dalheimers Hus, Slottsskogsgatan 12, Gothenburg, Sweden"]
[Date "2024.04.14"]
[Round "4.4"]
[White "Mohammadi, Amir"]
[Black "Andreasson, Ingvar"]
[Result "1-0"]
[TimeControl "15 minutes + 5 seconds per move from move one."]
[WhiteFideId "1705890"]
[BlackFideId "1700294"]
[WhiteElo "2275"]
[BlackElo "2323"]

1. e4 {[%clk 00:15:07]} {[%emt 00:00:02]} c5 {[%clk 00:14:58]} {[%emt
00:00:12]} 2. Nc3 {[%clk 00:15:08]} {[%emt 00:00:04]} Nc6 {[%clk 00:15:02]} 3.
g3 {[%clk 00:15:12]} {[%emt 00:00:01]} g6 {[%clk 00:15:06]} 4. Bg2 {[%clk
00:15:16]} Bg7 {[%clk 00:15:03]} {[%emt 00:00:08]} 5. d3 {[%clk 00:15:19]}
{[%emt 00:00:02]} d6 {[%clk 00:15:06]} {[%emt 00:00:02]} 6. Be3 {[%clk
00:15:23]} {[%emt 00:00:02]} Nf6 {[%clk 00:15:09]} {[%emt 00:00:01]} 7. h3
{[%clk 00:15:14]} {[%emt 00:00:14]} Rb8 {[%clk 00:14:13]} {[%emt 00:01:01]} 8.
Qd2 {[%clk 00:15:15]} {[%emt 00:00:04]} b5 {[%clk 00:13:53]} {[%emt 00:00:26]}
9. Bh6 {[%clk 00:14:52]} {[%emt 00:00:27]} Bxh6 {[%clk 00:12:33]} {[%emt
00:01:24]} 10. Qxh6 {[%clk 00:14:55]} {[%emt 00:00:03]} b4 {[%clk 00:12:32]}
{[%emt 00:00:07]} 11. Nce2 {[%clk 00:14:30]} {[%emt 00:00:30]} Qa5 {[%clk
00:11:46]} {[%emt 00:00:51]} 12. Qd2 {[%clk 00:10:01]} {[%emt 00:04:35]} Qb6
{[%clk 00:10:53]} {[%emt 00:00:58]} 13. Nf3 {[%clk 00:09:37]} {[%emt 00:00:28]}
h6 {[%clk 00:10:11]} {[%emt 00:00:47]} 14. O-O {[%clk 00:09:35]} {[%emt
00:00:07]} Kf8 {[%clk 00:10:15]} 15. Qe3 {[%clk 00:08:54]} {[%emt 00:00:46]} e5
{[%clk 00:08:40]} {[%emt 00:01:40]} 16. Nd2 {[%clk 00:08:50]} {[%emt 00:00:09]}
Nd4 {[%clk 00:07:26]} {[%emt 00:01:18]} 17. Nxd4 {[%clk 00:08:38]} {[%emt
00:00:18]} cxd4 {[%clk 00:07:01]} {[%emt 00:00:30]} 18. Qe2 {[%clk 00:08:20]}
{[%emt 00:00:23]} Ba6 {[%clk 00:06:19]} {[%emt 00:00:48]} 19. f4 {[%clk
00:08:09]} {[%emt 00:00:16]} Kg7 {[%clk 00:06:14]} {[%emt 00:00:09]} 20. Rf2
{[%clk 00:07:46]} {[%emt 00:00:28]} Rhf8 {[%clk 00:03:37]} {[%emt 00:02:41]} 21.
Kh2 {[%clk 00:04:37]} {[%emt 00:03:14]} Rbc8 {[%clk 00:03:09]} {[%emt
00:00:33]} 22. Nf3 {[%clk 00:04:38]} {[%emt 00:00:04]} Rc5 {[%clk 00:01:55]}
{[%emt 00:01:20]} 23. Raf1 {[%clk 00:04:00]} {[%emt 00:00:43]} exf4 {[%clk
00:01:43]} {[%emt 00:00:17]} 24. gxf4 {[%clk 00:04:04]} {[%emt 00:00:02]} Ra5
{[%clk 00:01:30]} {[%emt 00:00:17]} 25. f5 {[%clk 00:02:24]} {[%emt 00:01:45]}
g5 {[%clk 00:01:06]} {[%emt 00:00:29]} 26. Qd2 {[%clk 00:01:47]} {[%emt
00:00:42]} Qc5 {[%clk 00:00:36]} {[%emt 00:00:35]} 27. e5 {[%clk 00:01:14]}
{[%emt 00:00:38]} dxe5 {[%clk 00:00:40]} 28. Nxg5 {[%clk 00:01:18]} Rh8 {[%clk
00:00:10]} {[%emt 00:00:35]} 29. Ne4 {[%clk 00:01:22]} {[%emt 00:00:01]} Nxe4
{[%clk 00:00:13]} {[%emt 00:00:02]} 30. Bxe4 {[%clk 00:01:22]} {[%emt
00:00:05]} Rxa2 {[%clk 00:00:10]} {[%emt 00:00:08]} 31. f6+ {[%clk 00:00:54]}
{[%emt 00:00:33]} Kf8 {[%clk 00:00:15]} 32. b3 {[%clk 00:00:41]} {[%emt
00:00:18]} Bb5 {[%clk 00:00:13]} {[%emt 00:00:06]} 33. Qe2 {[%clk 00:00:45]}
Bc6 {[%clk 00:00:13]} {[%emt 00:00:05]} 34. Bxc6 {[%clk 00:00:45]} {[%emt
00:00:06]} Qxc6 {[%clk 00:00:17]} {[%emt 00:00:01]} 35. Qxe5 {[%clk 00:00:48]}
{[%emt 00:00:02]} Qd7 {[%clk 00:00:09]} {[%emt 00:00:12]} 36. Re1 {[%clk
00:00:40]} {[%emt 00:00:13]} Qd8 {[%clk 00:00:00]} {[%emt 00:00:10]} 1-0

[Event "Dalheimers Hus Rapid Open"]
[Site "Dalheimers Hus, Slottsskogsgatan 12, Gothenburg, Sweden"]
[Date "2024.04.14"]
[Round "4.5"]
[White "Winsnes, Rikard"]
[Black "Johansson, Gunnar"]
[Result "1/2-1/2"]
[TimeControl "15 minutes + 5 seconds per move from move one."]
[WhiteTitle "IM"]
[WhiteFideId "1700430"]
[BlackFideId "1700715"]
[WhiteElo "2352"]
[BlackElo "2186"]

1. g3 {[%clk 00:14:46]} {[%emt 00:00:25]} e5 {[%clk 00:14:55]} {[%emt
00:00:19]} 2. c4 {[%clk 00:14:47]} {[%emt 00:00:05]} Nf6 {[%clk 00:14:09]}
{[%emt 00:00:50]} 3. Bg2 {[%clk 00:14:45]} {[%emt 00:00:07]} Nc6 {[%clk
00:14:04]} {[%emt 00:00:10]} 4. e4 {[%clk 00:13:42]} {[%emt 00:01:08]} Bc5
{[%clk 00:12:50]} {[%emt 00:01:19]} 5. Nc3 {[%clk 00:12:58]} {[%emt 00:00:50]}
d6 {[%clk 00:12:33]} {[%emt 00:00:21]} 6. h3 {[%clk 00:11:55]} {[%emt
00:01:08]} h6 {[%clk 00:08:57]} {[%emt 00:03:41]} 7. Nge2 {[%clk 00:11:27]}
{[%emt 00:00:33]} g5 {[%clk 00:08:43]} {[%emt 00:00:19]} 8. d3 {[%clk
00:10:56]} {[%emt 00:00:37]} Rg8 {[%clk 00:08:15]} {[%emt 00:00:33]} 9. O-O
{[%clk 00:08:00]} {[%emt 00:03:00]} Be6 {[%clk 00:07:38]} {[%emt 00:00:42]} 10.
Nd5 {[%clk 00:07:44]} {[%emt 00:00:22]} a5 {[%clk 00:07:06]} {[%emt 00:00:37]}
11. Kh2 {[%clk 00:07:21]} {[%emt 00:00:27]} Nd4 {[%clk 00:06:55]} {[%emt
00:00:17]} 12. Be3 {[%clk 00:06:45]} {[%emt 00:00:41]} c6 {[%clk 00:06:50]}
{[%emt 00:00:10]} 13. Bxd4 {[%clk 00:06:13]} {[%emt 00:00:36]} Bxd4 {[%clk
00:06:23]} {[%emt 00:00:32]} 14. Nxd4 {[%clk 00:05:51]} {[%emt 00:00:27]} exd4
{[%clk 00:06:23]} {[%emt 00:00:05]} 15. Nxf6+ {[%clk 00:05:52]} {[%emt
00:00:05]} Qxf6 {[%clk 00:06:25]} {[%emt 00:00:02]} 16. f4 {[%clk 00:05:28]}
{[%emt 00:00:29]} gxf4 {[%clk 00:05:34]} {[%emt 00:00:56]} 17. Rxf4 {[%clk
00:05:32]} {[%emt 00:00:02]} Qe5 {[%clk 00:05:28]} {[%emt 00:00:10]} 18. Rb1
{[%clk 00:04:52]} {[%emt 00:00:46]} Kd7 {[%clk 00:05:07]} {[%emt 00:00:26]} 19.
Qf3 {[%clk 00:04:39]} {[%emt 00:00:17]} Rg7 {[%clk 00:04:59]} {[%emt 00:00:12]}
1/2-1/2

[Event "Dalheimers Hus Rapid Open"]
[Site "Dalheimers Hus, Slottsskogsgatan 12, Gothenburg, Sweden"]
[Date "2024.04.14"]
[Round "4.6"]
[White "Sandberg, Lucas"]
[Black "Storme, Isak"]
[Result "0-1"]
[TimeControl "15 minutes + 5 seconds per move from move one."]
[BlackTitle "IM"]
[WhiteFideId "1773712"]
[BlackFideId "1728113"]
[WhiteElo "1926"]
[BlackElo "2352"]

1. e4 {[%clk 00:15:08]} {[%emt 00:00:01]} e5 {[%clk 00:15:05]} {[%emt
00:00:05]} 2. Nf3 {[%clk 00:15:12]} {[%emt 00:00:01]} Nc6 {[%clk 00:15:09]}
{[%emt 00:00:02]} 3. Bb5 {[%clk 00:15:08]} {[%emt 00:00:09]} g6 {[%clk
00:15:03]} {[%emt 00:00:11]} 4. O-O {[%clk 00:15:03]} {[%emt 00:00:11]} Bg7
{[%clk 00:15:05]} {[%emt 00:00:02]} 5. Re1 {[%clk 00:14:47]} {[%emt 00:00:21]}
a6 {[%clk 00:14:58]} {[%emt 00:00:12]} 6. Ba4 {[%clk 00:14:51]} Nge7 {[%clk
00:14:33]} {[%emt 00:00:30]} 7. c3 {[%clk 00:14:43]} {[%emt 00:00:13]} b5
{[%clk 00:14:28]} {[%emt 00:00:10]} 8. Bc2 {[%clk 00:14:37]} {[%emt 00:00:11]}
O-O {[%clk 00:14:18]} {[%emt 00:00:15]} 9. d4 {[%clk 00:14:19]} {[%emt
00:00:22]} exd4 {[%clk 00:13:45]} {[%emt 00:00:38]} 10. cxd4 {[%clk 00:14:22]}
{[%emt 00:00:03]} d5 {[%clk 00:13:36]} {[%emt 00:00:14]} 11. Nc3 {[%clk
00:12:26]} {[%emt 00:02:01]} Bg4 {[%clk 00:13:05]} {[%emt 00:00:36]} 12. e5
{[%clk 00:12:12]} {[%emt 00:00:19]} Bxf3 {[%clk 00:12:38]} {[%emt 00:00:32]} 13.
gxf3 {[%clk 00:12:14]} {[%emt 00:00:04]} Qd7 {[%clk 00:12:36]} {[%emt
00:00:06]} 14. Ne2 {[%clk 00:11:37]} {[%emt 00:00:42]} Nf5 {[%clk 00:12:14]}
{[%emt 00:00:26]} 15. Bxf5 {[%clk 00:11:24]} {[%emt 00:00:18]} Qxf5 {[%clk
00:12:14]} {[%emt 00:00:05]} 16. Ng3 {[%clk 00:11:28]} {[%emt 00:00:02]} Qh3
{[%clk 00:10:57]} {[%emt 00:01:22]} 17. f4 {[%clk 00:10:34]} {[%emt 00:00:59]}
h5 {[%clk 00:08:18]} {[%emt 00:02:44]} 18. Be3 {[%clk 00:09:58]} {[%emt
00:00:40]} h4 {[%clk 00:08:15]} {[%emt 00:00:08]} 19. Nf1 {[%clk 00:09:27]}
{[%emt 00:00:36]} Nd8 {[%emt 00:01:59]} 20. Nd2 {[%clk 00:08:28]} Ne6 {[%clk
00:07:22]} {[%emt 00:00:07]} 21. Qf3 {[%clk 00:08:10]} {[%emt 00:00:23]} Qf5
{[%clk 00:06:48]} {[%emt 00:00:38]} 22. Rac1 {[%clk 00:07:27]} {[%emt
00:00:49]} Bh6 {[%clk 00:05:44]} {[%emt 00:01:10]} 23. Qxd5 {[%clk 00:06:10]}
{[%emt 00:01:22]} Bxf4 {[%clk 00:04:48]} {[%emt 00:01:00]} 24. Qe4 {[%clk
00:05:30]} {[%emt 00:00:44]} Rad8 {[%clk 00:02:44]} {[%emt 00:02:09]} 25. Qxf5
{[%clk 00:05:11]} {[%emt 00:00:25]} gxf5 {[%clk 00:02:47]} {[%emt 00:00:02]} 26.
Nf3 {[%clk 00:05:10]} {[%emt 00:00:05]} h3 {[%clk 00:02:27]} {[%emt 00:00:26]}
27. Rc6 {[%clk 00:04:54]} {[%emt 00:00:21]} Bxe3 {[%clk 00:02:17]} {[%emt
00:00:15]} 28. fxe3 {[%clk 00:04:56]} {[%emt 00:00:04]} Kh7 {[%clk 00:01:58]}
{[%emt 00:00:23]} 29. Rxa6 {[%clk 00:03:49]} {[%emt 00:01:13]} Rg8+ {[%clk
00:02:00]} {[%emt 00:00:03]} 30. Kh1 {[%clk 00:03:53]} Rg2 {[%clk 00:01:38]}
{[%emt 00:00:26]} 31. Rg1 {[%clk 00:02:54]} {[%emt 00:01:04]} Rdg8 {[%clk
00:01:40]} {[%emt 00:00:02]} 32. d5 {[%clk 00:02:38]} {[%emt 00:00:22]} Nc5
{[%clk 00:01:36]} {[%emt 00:00:09]} 33. Rf6 {[%clk 00:01:55]} {[%emt 00:00:48]}
Ne4 {[%emt 00:01:11]} 34. Rxg2 {[%clk 00:00:48]} {[%emt 00:00:07]} Rxg2 {[%clk
00:01:21]} {[%emt 00:00:19]} 35. Rxf7+ {[%clk 00:00:43]} {[%emt 00:00:10]} Kg8
{[%clk 00:01:22]} {[%emt 00:00:04]} 0-1

[Event "Dalheimers Hus Rapid Open"]
[Site "Dalheimers Hus, Slottsskogsgatan 12, Gothenburg, Sweden"]
[Date "2024.04.14"]
[Round "4.7"]
[White "Aaberg, Anton"]
[Black "Sigurgeirson, Brjann"]
[Result "0-1"]
[TimeControl "15 minutes + 5 seconds per move from move one."]
[WhiteTitle "IM"]
[WhiteFideId "1701991"]
[BlackFideId "1712497"]
[WhiteElo "2346"]
[BlackElo "2103"]

1. e4 {[%clk 00:15:09]} {[%emt 00:00:01]} c5 {[%clk 00:15:09]} {[%emt
00:00:01]} 2. Nf3 {[%clk 00:15:06]} {[%emt 00:00:08]} d6 {[%clk 00:15:13]}
{[%emt 00:00:01]} 3. Bb5+ {[%clk 00:15:08]} {[%emt 00:00:04]} Nd7 {[%clk
00:15:16]} {[%emt 00:00:01]} 4. O-O {[%clk 00:15:03]} {[%emt 00:00:10]} Ngf6
{[%clk 00:15:17]} {[%emt 00:00:03]} 5. Re1 {[%clk 00:15:04]} {[%emt 00:00:04]}
a6 {[%clk 00:14:56]} {[%emt 00:00:27]} 6. Bf1 {[%clk 00:14:59]} {[%emt
00:00:09]} g6 {[%clk 00:14:49]} {[%emt 00:00:13]} 7. c3 {[%clk 00:15:00]}
{[%emt 00:00:05]} Bg7 {[%clk 00:14:34]} {[%emt 00:00:19]} 8. d4 {[%clk
00:15:03]} {[%emt 00:00:02]} cxd4 {[%clk 00:12:50]} {[%emt 00:01:49]} 9. cxd4
{[%clk 00:15:04]} {[%emt 00:00:04]} O-O {[%clk 00:12:53]} {[%emt 00:00:02]} 10.
Nc3 {[%clk 00:14:43]} {[%emt 00:00:26]} b5 {[%clk 00:10:33]} {[%emt 00:02:25]}
11. e5 {[%clk 00:13:20]} {[%emt 00:01:28]} Ne8 {[%clk 00:08:49]} {[%emt
00:01:49]} 12. e6 {[%clk 00:12:15]} {[%emt 00:01:11]} fxe6 {[%clk 00:08:15]}
{[%emt 00:00:38]} 13. Ng5 {[%clk 00:12:17]} {[%emt 00:00:03]} Nb6 {[%clk
00:07:16]} {[%emt 00:01:04]} 14. Nxe6 {[%clk 00:07:19]} {[%emt 00:05:03]} Bxe6
{[%clk 00:07:17]} {[%emt 00:00:04]} 15. Rxe6 {[%clk 00:07:23]} Nc7 {[%clk
00:05:25]} {[%emt 00:01:57]} 16. Re1 {[%clk 00:07:26]} {[%emt 00:00:02]} e5
{[%clk 00:05:04]} {[%emt 00:00:26]} 17. d5 {[%clk 00:06:52]} {[%emt 00:00:39]}
Kh8 {[%clk 00:02:54]} {[%emt 00:02:15]} 18. a3 {[%clk 00:06:32]} {[%emt
00:00:26]} Nd7 {[%clk 00:02:25]} {[%emt 00:00:33]} 19. Be3 {[%clk 00:05:49]}
{[%emt 00:00:48]} Nf6 {[%clk 00:02:13]} {[%emt 00:00:18]} 20. g3 {[%clk
00:05:29]} {[%emt 00:00:25]} Qd7 {[%clk 00:02:09]} {[%emt 00:00:08]} 21. h3
{[%clk 00:05:27]} {[%emt 00:00:07]} Rac8 {[%clk 00:02:01]} {[%emt 00:00:14]} 22.
Qb3 {[%clk 00:04:24]} {[%emt 00:01:07]} Rb8 {[%clk 00:01:38]} {[%emt 00:00:28]}
23. Red1 {[%clk 00:03:31]} {[%emt 00:00:58]} a5 {[%clk 00:01:38]} {[%emt
00:00:06]} 24. Bg2 {[%clk 00:02:59]} {[%emt 00:00:36]} b4 {[%clk 00:00:50]}
{[%emt 00:00:53]} 25. axb4 {[%clk 00:02:31]} {[%emt 00:00:34]} Rxb4 {[%clk
00:00:54]} 26. Qc2 {[%clk 00:02:27]} {[%emt 00:00:08]} Rfb8 {[%clk 00:00:54]}
{[%emt 00:00:05]} 27. Rdb1 {[%clk 00:02:10]} {[%emt 00:00:21]} Qf5 {[%clk
00:00:57]} {[%emt 00:00:03]} 28. Qxf5 {[%clk 00:01:48]} {[%emt 00:00:26]} gxf5
{[%clk 00:01:01]} {[%emt 00:00:02]} 29. Rxa5 {[%clk 00:01:44]} {[%emt
00:00:09]} Rxb2 {[%clk 00:01:03]} {[%emt 00:00:03]} 30. Rxb2 {[%clk 00:01:46]}
{[%emt 00:00:03]} Rxb2 {[%clk 00:01:07]} {[%emt 00:00:01]} 31. Ra7 {[%clk
00:01:40]} {[%emt 00:00:12]} Nfe8 {[%clk 00:00:57]} {[%emt 00:00:14]} 32. Bg5
{[%clk 00:00:56]} {[%emt 00:00:49]} e4 {[%clk 00:00:48]} {[%emt 00:00:15]} 33.
Ra3 {[%clk 00:00:30]} {[%emt 00:00:30]} Rc2 {[%clk 00:00:26]} {[%emt 00:00:27]}
34. Nd1 {[%clk 00:00:31]} {[%emt 00:00:04]} Bd4 {[%clk 00:00:24]} {[%emt
00:00:07]} 35. Be3 {[%clk 00:00:30]} {[%emt 00:00:06]} Bc5 {[%clk 00:00:11]}
{[%emt 00:00:18]} 36. g4 {[%clk 00:00:16]} 0-1

[Event "Dalheimers Hus Rapid Open"]
[Site "Dalheimers Hus, Slottsskogsgatan 12, Gothenburg, Sweden"]
[Date "2024.04.14"]
[Round "4.8"]
[White "Wellevit, Tomas"]
[Black "Hamark, Jesper"]
[Result "1/2-1/2"]
[TimeControl "15 minutes + 5 seconds per move from move one."]
[WhiteFideId "1731963"]
[BlackFideId "1704338"]
[WhiteElo "1978"]
[BlackElo "2301"]

1. e4 {[%clk 00:15:07]} {[%emt 00:00:02]} c5 {[%clk 00:15:07]} {[%emt
00:00:03]} 2. Nf3 {[%clk 00:15:08]} {[%emt 00:00:04]} e6 {[%clk 00:15:02]}
{[%emt 00:00:10]} 3. c4 {[%clk 00:15:03]} {[%emt 00:00:10]} Nc6 {[%clk
00:15:02]} {[%emt 00:00:05]} 4. Be2 {[%clk 00:15:03]} {[%emt 00:00:05]} Nf6
{[%clk 00:15:02]} {[%emt 00:00:06]} 5. d3 {[%clk 00:15:04]} {[%emt 00:00:03]}
Be7 {[%clk 00:14:02]} {[%emt 00:01:05]} 6. Nc3 {[%clk 00:14:58]} {[%emt
00:00:12]} O-O {[%clk 00:13:53]} {[%emt 00:00:13]} 7. O-O {[%clk 00:14:39]}
{[%emt 00:00:24]} a6 {[%clk 00:13:03]} {[%emt 00:00:56]} 8. Bf4 {[%clk
00:14:16]} {[%emt 00:00:27]} d6 {[%clk 00:12:46]} {[%emt 00:00:23]} 9. Re1
{[%clk 00:13:52]} {[%emt 00:00:28]} Rb8 {[%clk 00:11:33]} {[%emt 00:01:18]} 10.
a4 {[%clk 00:13:09]} {[%emt 00:00:48]} Qc7 {[%clk 00:11:33]} {[%emt 00:00:04]}
11. Bf1 {[%clk 00:12:25]} {[%emt 00:00:50]} Nd7 {[%clk 00:11:20]} {[%emt
00:00:19]} 12. Bg3 {[%clk 00:12:16]} {[%emt 00:00:14]} Bf6 {[%clk 00:11:03]}
{[%emt 00:00:22]} 13. Qd2 {[%clk 00:12:09]} {[%emt 00:00:12]} b6 {[%clk
00:10:38]} {[%emt 00:00:30]} 14. Ne2 {[%clk 00:10:36]} {[%emt 00:01:38]} Nde5
{[%clk 00:09:35]} {[%emt 00:01:08]} 15. Nxe5 {[%clk 00:10:37]} {[%emt
00:00:04]} dxe5 {[%clk 00:09:36]} {[%emt 00:00:04]} 16. Qc3 {[%clk 00:10:25]}
{[%emt 00:00:16]} Rd8 {[%clk 00:09:28]} {[%emt 00:00:13]} 17. f4 {[%clk
00:10:14]} {[%emt 00:00:16]} exf4 {[%clk 00:08:27]} {[%emt 00:01:07]} 18. Bxf4
{[%clk 00:10:18]} {[%emt 00:00:01]} Qd7 {[%clk 00:06:42]} {[%emt 00:01:50]} 19.
e5 {[%clk 00:10:20]} {[%emt 00:00:03]} Be7 {[%clk 00:06:46]} 20. Red1 {[%clk
00:09:36]} {[%emt 00:00:49]} Bb7 {[%clk 00:06:50]} {[%emt 00:00:01]} 21. Kh1
{[%clk 00:08:28]} {[%emt 00:01:13]} h6 {[%clk 00:06:53]} {[%emt 00:00:02]} 22.
b3 {[%clk 00:08:05]} {[%emt 00:00:28]} Bf8 {[%clk 00:06:54]} {[%emt 00:00:03]}
23. Qe1 {[%clk 00:08:07]} {[%emt 00:00:03]} Qe7 {[%clk 00:06:31]} {[%emt
00:00:28]} 24. Qg3 {[%clk 00:08:08]} {[%emt 00:00:05]} Kh8 {[%clk 00:06:35]}
{[%emt 00:00:01]} 25. Be3 {[%clk 00:07:53]} {[%emt 00:00:20]} Rd7 {[%clk
00:06:08]} {[%emt 00:00:31]} 26. Ra2 {[%clk 00:07:11]} {[%emt 00:00:48]} Rbd8
{[%clk 00:06:11]} {[%emt 00:00:02]} 27. Rad2 {[%clk 00:07:15]} g6 {[%clk
00:04:38]} {[%emt 00:01:37]} 28. d4 {[%clk 00:06:54]} {[%emt 00:00:26]} cxd4
{[%clk 00:04:40]} {[%emt 00:00:04]} 29. Nxd4 {[%clk 00:06:57]} {[%emt
00:00:02]} Nxd4 {[%clk 00:04:39]} {[%emt 00:00:07]} 30. Rxd4 {[%clk 00:07:00]}
{[%emt 00:00:02]} Rxd4 {[%clk 00:04:08]} {[%emt 00:00:35]} 31. Rxd4 {[%clk
00:07:04]} {[%emt 00:00:02]} Rxd4 {[%clk 00:04:10]} {[%emt 00:00:03]} 32. Bxd4
{[%clk 00:07:08]} Qc7 {[%clk 00:03:26]} {[%emt 00:00:49]} 33. Qf2 {[%clk
00:06:56]} {[%emt 00:00:16]} Bc5 {[%clk 00:03:30]} {[%emt 00:00:01]} 34. Qf6+
{[%clk 00:07:00]} {[%emt 00:00:02]} Kg8 {[%clk 00:03:33]} {[%emt 00:00:01]} 35.
Bxc5 {[%clk 00:06:25]} {[%emt 00:00:40]} bxc5 {[%clk 00:03:37]} 36. h4 {[%clk
00:05:54]} {[%emt 00:00:37]} h5 {[%clk 00:03:35]} {[%emt 00:00:07]} 37. Bd3
{[%clk 00:05:31]} {[%emt 00:00:27]} Qc6 {[%clk 00:03:10]} {[%emt 00:00:31]} 38.
Qd8+ {[%clk 00:05:28]} {[%emt 00:00:07]} Kh7 {[%clk 00:02:53]} {[%emt
00:00:22]} 39. Qg5 {[%clk 00:05:26]} {[%emt 00:00:08]} Kg8 {[%clk 00:01:50]}
{[%emt 00:01:07]} 40. Qd8+ {[%clk 00:04:35]} {[%emt 00:00:57]} 1/2-1/2

[Event "Dalheimers Hus Rapid Open"]
[Site "Dalheimers Hus, Slottsskogsgatan 12, Gothenburg, Sweden"]
[Date "2024.04.14"]
[Round "4.9"]
[White "Seo, Jung Min"]
[Black "Eriksson, Kristian"]
[Result "1-0"]
[TimeControl "15 minutes + 5 seconds per move from move one."]
[WhiteTitle "IM"]
[WhiteFideId "1734687"]
[BlackFideId "1705172"]
[WhiteElo "2450"]
[BlackElo "1961"]

1. e4 {[%clk 00:15:05]} e5 {[%clk 00:15:05]} {[%emt 00:00:05]} 2. Nf3 {[%clk
00:15:14]} {[%emt 00:00:02]} Nc6 {[%clk 00:15:07]} {[%emt 00:00:03]} 3. Bb5
{[%clk 00:15:17]} Nd4 {[%clk 00:15:01]} {[%emt 00:00:11]} 4. Nxd4 {[%clk
00:15:18]} {[%emt 00:00:04]} exd4 {[%clk 00:15:04]} {[%emt 00:00:02]} 5. O-O
{[%clk 00:15:16]} {[%emt 00:00:07]} c6 {[%clk 00:15:03]} {[%emt 00:00:05]} 6.
Bc4 {[%clk 00:15:09]} {[%emt 00:00:13]} Nf6 {[%clk 00:14:56]} {[%emt 00:00:12]}
7. e5 {[%clk 00:14:25]} {[%emt 00:00:49]} d5 {[%clk 00:14:46]} {[%emt
00:00:15]} 8. exd6 {[%clk 00:10:50]} {[%emt 00:03:41]} Bxd6 {[%clk 00:12:06]}
{[%emt 00:02:44]} 9. Re1+ {[%clk 00:10:54]} Kf8 {[%clk 00:11:41]} {[%emt
00:00:29]} 10. h3 {[%clk 00:09:16]} {[%emt 00:01:44]} g6 {[%clk 00:09:25]}
{[%emt 00:02:21]} 11. d3 {[%clk 00:09:18]} {[%emt 00:00:03]} Kg7 {[%clk
00:09:24]} {[%emt 00:00:06]} 12. Nd2 {[%clk 00:09:12]} {[%emt 00:00:11]} Bc7
{[%clk 00:07:42]} {[%emt 00:01:46]} 13. Nf3 {[%clk 00:09:06]} {[%emt 00:00:11]}
Qd6 {[%clk 00:07:02]} {[%emt 00:00:45]} 14. Bg5 {[%clk 00:08:09]} {[%emt
00:01:03]} Be6 {[%clk 00:06:18]} {[%emt 00:00:49]} 15. Bxe6 {[%clk 00:08:10]}
{[%emt 00:00:04]} fxe6 {[%clk 00:06:21]} {[%emt 00:00:02]} 16. Qe2 {[%clk
00:07:16]} {[%emt 00:01:00]} Rae8 {[%clk 00:05:56]} {[%emt 00:00:30]} 17. Bxf6+
{[%clk 00:07:15]} {[%emt 00:00:06]} Kxf6 {[%clk 00:05:56]} {[%emt 00:00:04]} 18.
Qe4 {[%clk 00:07:19]} {[%emt 00:00:01]} c5 {[%clk 00:03:46]} {[%emt 00:02:15]}
19. b3 {[%clk 00:06:23]} {[%emt 00:01:02]} b6 {[%clk 00:03:37]} {[%emt
00:00:13]} 20. Qh4+ {[%clk 00:04:55]} {[%emt 00:01:32]} Kg7 {[%clk 00:03:32]}
{[%emt 00:00:11]} 21. Re4 {[%clk 00:04:59]} {[%emt 00:00:01]} Rhf8 {[%clk
00:03:00]} {[%emt 00:00:37]} 22. Rae1 {[%clk 00:05:02]} {[%emt 00:00:01]} h6
{[%clk 00:02:30]} {[%emt 00:00:36]} 23. Ne5 {[%clk 00:04:26]} {[%emt 00:00:41]}
Rf5 {[%clk 00:02:06]} {[%emt 00:00:29]} 24. Qg4 {[%clk 00:03:20]} {[%emt
00:01:11]} Rxe5 {[%clk 00:01:38]} {[%emt 00:00:33]} 25. Rxe5 {[%clk 00:03:24]}
Qxe5 {[%clk 00:01:42]} {[%emt 00:00:02]} 26. Rxe5 {[%clk 00:03:28]} Bxe5 {[%clk
00:01:46]} 27. Qe4 {[%clk 00:03:31]} {[%emt 00:00:02]} Bf6 {[%clk 00:01:35]}
{[%emt 00:00:16]} 28. a4 {[%clk 00:03:26]} {[%emt 00:00:10]} Re7 {[%clk
00:00:40]} {[%emt 00:01:01]} 29. Qc6 {[%clk 00:03:26]} {[%emt 00:00:05]} Be5
{[%clk 00:00:34]} {[%emt 00:00:10]} 30. a5 {[%clk 00:03:23]} {[%emt 00:00:08]}
Bc7 {[%clk 00:00:25]} {[%emt 00:00:14]} 31. g3 {[%clk 00:03:18]} {[%emt
00:00:11]} Kf7 {[%clk 00:00:28]} {[%emt 00:00:01]} 32. a6 {[%clk 00:03:08]}
{[%emt 00:00:15]} g5 {[%clk 00:00:30]} {[%emt 00:00:03]} 33. Kg2 {[%clk
00:03:10]} {[%emt 00:00:03]} Kf6 {[%clk 00:00:28]} {[%emt 00:00:07]} 34. Kf3
{[%clk 00:03:12]} {[%emt 00:00:03]} Kg7 {[%clk 00:00:17]} {[%emt 00:00:16]} 35.
Kg4 {[%clk 00:03:03]} {[%emt 00:00:13]} Kf6 {[%clk 00:00:15]} {[%emt 00:00:08]}
36. Kh5 {[%clk 00:03:04]} {[%emt 00:00:03]} Kg7 {[%clk 00:00:08]} {[%emt
00:00:13]} 37. Qe4 {[%clk 00:03:08]} 1-0